[Event "OEISM 0818 BLMM"]
[Site "austriablmm"]
[Date "2020.12.12"]
[Round "1"]
[White "UrosN"]
[Black "Beckenbauer23"]
[Result "0-1"]
[WhiteElo "1883"]
[BlackElo "2081"]
[Annotator "NA RC"]
[PlyCount "48"]
[EventDate "2020.12.12"]
[EventType "blitz"]
[TimeControl "600+3"]

1. d4 {[%emt 0:00:02]} Nf6 {[%emt 0:00:03]} 2. c4 {[%emt 0:00:01]} a6 {[%emt 0:00:03]} 3. Nc3 {[%emt 0:00:03]} c5 {[%emt 0:00:07]} 4. d5 {[%emt 0:00:07]} b5 {[%emt 0:00:02]} 5. cxb5 {[%emt 0:00:05]} axb5 {[%emt 0:00:54]} 6. Nxb5 {[%emt 0:01:23]} Bb7 {[%emt 0:00:26]} 7. e4 {[%emt 0:01:11]} Nxe4 {[%emt 0:00:40]} 8. d6 {[%emt 0:00:02]} Qa5+ {[%emt 0:02:05]} 9. Bd2 {[%emt 0:00:04]} Nxd2 {[%emt 0:00:03]} 10. Qxd2 {[%emt 0:00:00]} exd6 {[%emt 0:00:15]} 11. b4 {[%emt 0:01:51]} cxb4 {[%emt 0:00:50]} 12. Bc4 {[%emt 0:02:51]} Bxg2 {[%emt 0:01:41]} 13. Nf3 {[%emt 0:01:24]} Bxh1 {[%emt 0:00:39]} 14. Kf1 {[%emt 0:01:29]} Be7 {[%emt 0:01:20]} 15. Re1 {[%emt 0:00:07]} O-O {[%emt 0:00:05]} 16. Ng5 {[%emt 0:00:03]} Bxg5 {[%emt 0:00:16]} 17. Qxg5 {[%emt 0:00:00]} d5 {[%emt 0:00:04]} 18. Bd3 {[%emt 0:00:04]} Be4 {[%emt 0:00:04]} 19. Qe3 {[%emt 0:00:06]} Bxd3+ {[%emt 0:00:09]} 20. Qxd3 {[%emt 0:00:00]} Nc6 {[%emt 0:00:04]} 21. Nd6 {[%emt 0:00:06]} Qa6 {[%emt 0:00:04]} 22. Qxa6 {[%emt 0:00:05]} Rxa6 {[%emt 0:00:01]} 23. Nf5 {[%emt 0:00:04]} Rxa2 {[%emt 0:00:03]} 24. Rd1 {[%emt 0:00:02]} d4 {[%emt 0:00:01] TimeW} 0-1

[Event "OEISM 0818 BLMM"]
[Site "austriablmm"]
[Date "2020.12.12"]
[Round "2"]
[White "Kriasi"]
[Black "Daniel05"]
[Result "1/2-1/2"]
[WhiteElo "1778"]
[BlackElo "1850"]
[Annotator "NA RC"]
[PlyCount "171"]
[EventDate "2020.12.12"]
[EventType "blitz"]
[TimeControl "600+3"]

1. e4 {[%emt 0:00:03]} e6 {[%emt 0:00:10]} 2. d4 {[%emt 0:00:06]} d5 {[%emt 0:00:01]} 3. Nc3 {[%emt 0:00:02]} Nf6 {[%emt 0:00:02]} 4. e5 {[%emt 0:00:01]} Nfd7 {[%emt 0:00:01]} 5. Nce2 {[%emt 0:00:00]} c5 {[%emt 0:00:00]} 6. c3 {[%emt 0:00:01]} Nc6 {[%emt 0:00:01]} 7. Nf3 {[%emt 0:00:02]} Qb6 {[%emt 0:00:10]} 8. a3 {[%emt 0:00:04]} f6 {[%emt 0:00:11]} 9. Nf4 {[%emt 0:00:43] Kriasi reconnected. Kriasi reconnected.} fxe5 {[%emt 0:01:36]} 10. Nxe6 {[%emt 0:00:05]} e4 {[%emt 0:00:01]} 11. Nxf8 {[%emt 0:01:37]} Rxf8 {[%emt 0:00:40]} 12. Ng5 {[%emt 0:00:37]} Nf6 {[%emt 0:00:12]} 13. dxc5 {[%emt 0:00:24]} Qxc5 {[%emt 0:00:25]} 14. Be3 {[%emt 0:00:05]} Qe7 {[%emt 0:00:01]} 15. Be2 {[%emt 0:00:41]} h6 {[%emt 0:00:02]} 16. Nh3 {[%emt 0:00:34]} Bxh3 {[%emt 0:00:30]} 17. gxh3 {[%emt 0:00:00]} O-O-O {[%emt 0:00:01]} 18. Qc2 {[%emt 0:00:32]} Kb8 {[%emt 0:00:21]} 19. O-O-O {[%emt 0:00:05]} Ka8 {[%emt 0:00:01]} 20. Kb1 {[%emt 0:00:32]} Qe6 {[%emt 0:01:10]} 21. Bc5 {[%emt 0:00:29]} Rfe8 {[%emt 0:00:31]} 22. Rhg1 {[%emt 0:00:20]} g5 {[%emt 0:00:10]} 23. h4 {[%emt 0:00:16]} g4 {[%emt 0:00:23]} 24. Be3 {[%emt 0:00:08]} h5 {[%emt 0:00:27]} 25. Qa4 {[%emt 0:00:20]} Nd7 {[%emt 0:01:49]} 26. h3 {[%emt 0:00:57]} Nde5 {[%emt 0:00:09]} 27. hxg4 {[%emt 0:00:57]} hxg4 {[%emt 0:00:00]} 28. b4 {[%emt 0:00:07]} Nf3 {[%emt 0:01:45]} 29. Bxf3 {[%emt 0:00:09]} gxf3 {[%emt 0:00:04]} 30. b5 {[%emt 0:00:05]} d4 {[%emt 0:00:21]} 31. Bg5 {[%emt 0:00:05]} Ne7 {[%emt 0:00:11]} 32. cxd4 {[%emt 0:00:04]} Qd5 {[%emt 0:00:04]} 33. Be3 {[%emt 0:00:03]} Nc8 {[%emt 0:00:02]} 34. Rg5 {[%emt 0:00:02]} Nb6 {[%emt 0:00:04]} 35. Rxd5 {[%emt 0:00:12]} Nxa4 {[%emt 0:00:01]} 36. Rxd8+ {[%emt 0:00:05]} Rxd8 {[%emt 0:00:00]} 37. Kc2 {[%emt 0:00:02]} Rc8+ {[%emt 0:00:01]} 38. Kb3 {[%emt 0:00:02]} Nb6 {[%emt 0:00:02]} 39. Rc1 {[%emt 0:00:03]} Rh8 {[%emt 0:00:03]} 40. Bg5 {[%emt 0:00:05]} Nd5 {[%emt 0:00:15]} 41. Re1 {[%emt 0:00:04]} Re8 {[%emt 0:00:04]} 42. h5 {[%emt 0:00:03]} Kb8 {[%emt 0:00:02]} 43. h6 {[%emt 0:00:03]} Kc8 {[%emt 0:00:02]} 44. Bh4 {[%emt 0:00:04]} Kd7 {[%emt 0:00:07]} 45. Bg3 {[%emt 0:00:03]} Rh8 {[%emt 0:00:03]} 46. Rxe4 {[%emt 0:00:06]} Rxh6 {[%emt 0:00:01]} 47. Re5 {[%emt 0:00:02]} Nb6 {[%emt 0:00:03]} 48. Rf5 {[%emt 0:00:04]} Re6 {[%emt 0:00:06] '} 49. Rxf3 {[%emt 0:00:03]} Re7 {[%emt 0:00:01]} 50. Bh4 {[%emt 0:00:02]} Rh7 {[%emt 0:00:01]} 51. Bg5 {[%emt 0:00:03]} Rg7 {[%emt 0:00:01]} 52. Be3 {[%emt 0:00:02]} Nd5 {[%emt 0:00:02]} 53. Rf5 {[%emt 0:00:03]} Ke6 {[%emt 0:00:02]} 54. Re5+ {[%emt 0:00:02]} Kd6 {[%emt 0:00:00]} 55. Bd2 {[%emt 0:00:03]} Rf7 {[%emt 0:00:03]} 56. Be3 {[%emt 0:00:26]} a6 {[%emt 0:00:12]} 57. a4 {[%emt 0:00:07]} axb5 {[%emt 0:00:02]} 58. axb5 {[%emt 0:00:01]} Rf3 {[%emt 0:00:04]} 59. Kc4 {[%emt 0:00:07]} Nb6+ {[%emt 0:00:02]} 60. Kd3 {[%emt 0:00:03]} Rf7 {[%emt 0:00:02]} 61. Rh5 {[%emt 0:00:03]} Nd5 {[%emt 0:00:03]} 62. Rh6+ {[%emt 0:00:03]} Kd7 {[%emt 0:00:01]} 63. Kc4 {[%emt 0:00:05]} Nf6 {[%emt 0:00:08]} 64. f3 {[%emt 0:00:07]} Kc7 {[%emt 0:00:03]} 65. Bg5 {[%emt 0:00:05]} Ne8 {[%emt 0:00:01]} 66. Rh3 {[%emt 0:00:02]} Nd6+ {[%emt 0:00:02]} 67. Kb4 {[%emt 0:00:11]} Nxb5 {[%emt 0:00:01]} 68. Be3 {[%emt 0:00:14]} Nd6 {[%emt 0:00:03]} 69. f4 {[%emt 0:00:08]} Kc6 {[%emt 0:00:04]} 70. Rh6 {[%emt 0:00:03]} Kd5 {[%emt 0:00:02]} 71. Rh5+ {[%emt 0:00:01]} Nf5 {[%emt 0:00:04]} 72. Bf2 {[%emt 0:00:07]} Ke4 {[%emt 0:00:02]} 73. Kc5 {[%emt 0:00:03]} Rc7+ {[%emt 0:00:06]} 74. Kb6 {[%emt 0:00:02]} Rc2 {[%emt 0:00:01]} 75. Bg1 {[%emt 0:00:08]} Rg2 {[%emt 0:00:02]} 76. Bh2 {[%emt 0:00:02]} Rb2+ {[%emt 0:00:02]} 77. Kc7 {[%emt 0:00:01]} Nxd4 {[%emt 0:00:03]} 78. f5 {[%emt 0:00:01]} Nxf5 {[%emt 0:00:05]} 79. Bd6 {[%emt 0:00:01]} Nxd6 {[%emt 0:00:06]} 80. Kxd6 {[%emt 0:00:00]} Kd4 {[%emt 0:00:03]} 81. Rh4+ {[%emt 0:00:03]} Kc3 {[%emt 0:00:02]} 82. Kc5 {[%emt 0:00:02]} Kb3 {[%emt 0:00:04]} 83. Rb4+ {[%emt 0:00:03]} Ka3 {[%emt 0:00:01]} 84. Rxb2 {[%emt 0:00:01]} Kxb2 {[%emt 0:00:00]} 85. Kb6 {[%emt 0:00:01]} Kb3 {[%emt 0:00:00]} 86. Kxb7 {[%emt 0:00:00] No Material} 1/2-1/2

[Event "OEISM 0818 BLMM"]
[Site "austriablmm"]
[Date "2020.12.12"]
[Round "2"]
[White "Viktor09"]
[Black "Weirdo1"]
[Result "1/2-1/2"]
[WhiteElo "1682"]
[BlackElo "1828"]
[Annotator "NA RC"]
[PlyCount "113"]
[EventDate "2020.12.12"]
[EventType "blitz"]
[TimeControl "600+3"]

1. e4 {[%emt 0:00:05]} e5 {[%emt 0:00:02]} 2. Nf3 {[%emt 0:00:01]} Nc6 {[%emt 0:00:01]} 3. Bc4 {[%emt 0:00:01]} Bc5 {[%emt 0:00:01]} 4. d3 {[%emt 0:00:06]} Nf6 {[%emt 0:00:03]} 5. O-O {[%emt 0:00:01]} d6 {[%emt 0:00:05]} 6. a3 {[%emt 0:00:08]} O-O {[%emt 0:00:05]} 7. Nbd2 {[%emt 0:00:05]} Bg4 {[%emt 0:00:27]} 8. h3 {[%emt 0:00:04]} Bh5 {[%emt 0:00:02]} 9. Re1 {[%emt 0:00:04]} Nd4 {[%emt 0:00:29]} 10. c3 {[%emt 0:00:09]} Ne6 {[%emt 0:00:42]} 11. Nf1 {[%emt 0:00:13]} Bb6 {[%emt 0:00:54]} 12. Ng3 {[%emt 0:00:06]} Bxf3 {[%emt 0:00:05]} 13. Qxf3 {[%emt 0:00:03]} c6 {[%emt 0:00:23]} 14. Nf5 {[%emt 0:00:14]} d5 {[%emt 0:00:23]} 15. exd5 {[%emt 0:00:22]} cxd5 {[%emt 0:00:03]} 16. Bb3 {[%emt 0:00:03]} e4 {[%emt 0:00:35]} 17. dxe4 {[%emt 0:00:06]} dxe4 {[%emt 0:00:14]} 18. Qe2 {[%emt 0:00:08]} Nc5 {[%emt 0:00:10]} 19. Nd4 {[%emt 0:00:34]} Nd3 {[%emt 0:00:26]} 20. Rd1 {[%emt 0:00:25]} Bxd4 {[%emt 0:00:05]} 21. cxd4 {[%emt 0:00:06]} Qxd4 {[%emt 0:00:06]} 22. Be3 {[%emt 0:00:17]} Qxb2 {[%emt 0:00:19]} 23. Qxb2 {[%emt 0:00:09]} Nxb2 {[%emt 0:00:03]} 24. Rd4 {[%emt 0:00:05]} Rfd8 {[%emt 0:00:55]} 25. f3 {[%emt 0:00:25]} exf3 {[%emt 0:00:35]} 26. gxf3 {[%emt 0:00:17]} a6 {[%emt 0:00:31]} 27. Kf2 {[%emt 0:01:13]} Nd3+ {[%emt 0:00:13]} 28. Kg3 {[%emt 0:00:08]} Rxd4 {[%emt 0:00:34]} 29. Bxd4 {[%emt 0:00:03]} Rd8 {[%emt 0:00:02]} 30. Bxf6 {[%emt 0:00:06]} gxf6 {[%emt 0:00:03]} 31. Rd1 {[%emt 0:00:02]} Rd7 {[%emt 0:00:16]} 32. Bc4 {[%emt 0:00:40]} Ne5 {[%emt 0:00:11]} 33. Rxd7 {[%emt 0:00:01]} Nxd7 {[%emt 0:00:01]} 34. Bd5 {[%emt 0:00:01]} b6 {[%emt 0:00:12]} 35. Kf4 {[%emt 0:00:08]} Kf8 {[%emt 0:00:13]} 36. Kf5 {[%emt 0:00:08]} Ke7 {[%emt 0:00:02]} 37. Bc6 {[%emt 0:00:21]} Ne5 {[%emt 0:00:18]} 38. Bb7 {[%emt 0:00:33]} a5 {[%emt 0:00:02]} 39. a4 {[%emt 0:00:10]} Nd7 {[%emt 0:00:26]} 40. Bc6 {[%emt 0:00:05]} Nc5 {[%emt 0:00:07]} 41. Bb5 {[%emt 0:00:05]} Nb3 {[%emt 0:00:06]} 42. Bc4 {[%emt 0:00:17]} Nd4+ {[%emt 0:00:12]} 43. Ke4 {[%emt 0:00:02]} Nc2 {[%emt 0:00:18]} 44. Bb5 {[%emt 0:00:15]} Na3 {[%emt 0:00:08]} 45. Bd3 {[%emt 0:00:04] Viktor09 offers a draw} Kd6 {[%emt 0:00:47]} 46. Be2 {[%emt 0:00:23]} Nc2 {[%emt 0:00:04]} 47. Bd1 {[%emt 0:00:09]} Nb4 {[%emt 0:00:04]} 48. Kf5 {[%emt 0:00:04]} Nd5 {[%emt 0:00:05]} 49. Bb3 {[%emt 0:00:08]} Kc5 {[%emt 0:00:11]} 50. f4 {[%emt 0:00:21]} Kd6 {[%emt 0:00:05]} 51. h4 {[%emt 0:00:14]} Kc5 {[%emt 0:00:02]} 52. h5 {[%emt 0:00:12]} h6 {[%emt 0:00:02]} 53. Ke4 {[%emt 0:00:27]} Nc3+ {[%emt 0:00:04]} 54. Kd3 {[%emt 0:00:02]} Nd5 {[%emt 0:00:02]} 55. Ke4 {[%emt 0:00:02]} Nc3+ {[%emt 0:00:01]} 56. Kd3 {[%emt 0:00:01]} Nd5 {[%emt 0:00:03]} 57. Ke4 {[%emt 0:00:01] Threefold Rep} 1/2-1/2

[Event "OEISM 0818 BLMM"]
[Site "austriablmm"]
[Date "2020.12.12"]
[Round "4"]
[White "matschi2006"]
[Black "Daniel05"]
[Result "1/2-1/2"]
[WhiteElo "1731"]
[BlackElo "1857"]
[Annotator "NA RC"]
[PlyCount "55"]
[EventDate "2020.12.12"]
[EventType "blitz"]
[TimeControl "600+3"]

1. d4 {[%emt 0:00:11]} Nf6 {[%emt 0:00:01]} 2. Bg5 {[%emt 0:00:05]} e6 {[%emt 0:00:06]} 3. e4 {[%emt 0:00:02]} h6 {[%emt 0:00:01]} 4. Bxf6 {[%emt 0:00:05]} Qxf6 {[%emt 0:00:00]} 5. Nf3 {[%emt 0:00:01] matschi2006 offers a draw} d6 {[%emt 0:00:04]} 6. c3 {[%emt 0:00:03]} g6 {[%emt 0:00:03]} 7. Bd3 {[%emt 0:00:03]} Qe7 {[%emt 0:00:01]} 8. Nbd2 {[%emt 0:00:02]} Bg7 {[%emt 0:00:01]} 9. O-O {[%emt 0:00:01]} O-O {[%emt 0:00:01]} 10. Re1 {[%emt 0:00:02]} e5 {[%emt 0:00:02]} 11. Nf1 {[%emt 0:01:49]} Bg4 {[%emt 0:00:27]} 12. h3 {[%emt 0:00:04]} Bxf3 {[%emt 0:00:04]} 13. Qxf3 {[%emt 0:00:03]} exd4 {[%emt 0:00:00]} 14. cxd4 {[%emt 0:00:20]} Bxd4 {[%emt 0:00:00]} 15. Ne3 {[%emt 0:00:01]} c6 {[%emt 0:00:14]} 16. Qg3 {[%emt 0:00:12]} Bg7 {[%emt 0:02:12]} 17. Nc4 {[%emt 0:00:09]} Be5 {[%emt 0:01:10]} 18. f4 {[%emt 0:02:04]} Bd4+ {[%emt 0:00:02]} 19. Kh1 {[%emt 0:00:01]} b5 {[%emt 0:00:24]} 20. Ne3 {[%emt 0:00:49]} Bxe3 {[%emt 0:00:01]} 21. Qxe3 {[%emt 0:00:04]} Nd7 {[%emt 0:00:00]} 22. e5 {[%emt 0:00:10]} dxe5 {[%emt 0:00:15]} 23. fxe5 {[%emt 0:00:01]} Kg7 {[%emt 0:00:22]} 24. e6 {[%emt 0:00:05]} Qxe6 {[%emt 0:01:50]} 25. Qxe6 {[%emt 0:00:04]} fxe6 {[%emt 0:00:00]} 26. Rxe6 {[%emt 0:00:01]} Rf6 {[%emt 0:02:09]} 27. Re7+ {[%emt 0:00:03]} Rf7 {[%emt 0:00:01]} 28. Re6 {[%emt 0:00:01] matschi2006 offers a draw} 1/2-1/2

[Event "OEISM 0818 BLMM"]
[Site "austriablmm"]
[Date "2020.12.12"]
[Round "5"]
[White "Daniel05"]
[Black "Johnny Johnson"]
[Result "1-0"]
[WhiteElo "1852"]
[BlackElo "1771"]
[Annotator "NA RC"]
[PlyCount "117"]
[EventDate "2020.12.12"]
[EventType "blitz"]
[TimeControl "600+3"]

1. d4 {[%emt 0:00:02]} d5 {[%emt 0:00:02]} 2. c4 {[%emt 0:00:05]} e6 {[%emt 0:00:08]} 3. Nc3 {[%emt 0:00:01]} c6 {[%emt 0:00:01]} 4. Nf3 {[%emt 0:00:01]} dxc4 {[%emt 0:00:02]} 5. a4 {[%emt 0:00:04]} Bb4 {[%emt 0:00:06]} 6. e3 {[%emt 0:00:01]} b5 {[%emt 0:00:03]} 7. Bd2 {[%emt 0:00:05]} a5 {[%emt 0:00:04]} 8. axb5 {[%emt 0:00:03]} Bxc3 {[%emt 0:00:03]} 9. Bxc3 {[%emt 0:00:00]} cxb5 {[%emt 0:00:01]} 10. b3 {[%emt 0:00:00]} Bb7 {[%emt 0:00:01]} 11. bxc4 {[%emt 0:00:01]} b4 {[%emt 0:00:01]} 12. Bb2 {[%emt 0:00:00]} Nf6 {[%emt 0:00:01]} 13. c5 {[%emt 0:00:00]} O-O {[%emt 0:00:11]} 14. Bb5 {[%emt 0:00:04]} Bc6 {[%emt 0:00:34]} 15. Ba4 {[%emt 0:00:21]} Bxa4 {[%emt 0:01:04]} 16. Qxa4 {[%emt 0:00:00]} Qd7 {[%emt 0:00:24]} 17. Ne5 {[%emt 0:00:24]} Qxa4 {[%emt 0:00:06]} 18. Rxa4 {[%emt 0:00:00]} Nbd7 {[%emt 0:00:30]} 19. Nc4 {[%emt 0:00:19]} Ra7 {[%emt 0:00:27]} 20. Ke2 {[%emt 0:00:04]} Rfa8 {[%emt 0:00:53]} 21. Rha1 {[%emt 0:00:02]} Kf8 {[%emt 0:01:25]} 22. Rxa5 {[%emt 0:00:06]} Rxa5 {[%emt 0:00:04]} 23. Rxa5 {[%emt 0:00:00]} Rxa5 {[%emt 0:00:03]} 24. Nxa5 {[%emt 0:00:00]} Nd5 {[%emt 0:00:05]} 25. g3 {[%emt 0:00:18]} Ke7 {[%emt 0:00:14]} 26. Kd3 {[%emt 0:00:01]} f5 {[%emt 0:00:08]} 27. Nc6+ {[%emt 0:00:06]} Ke8 {[%emt 0:00:05]} 28. Kc4 {[%emt 0:00:01]} N7f6 {[%emt 0:00:10]} 29. Nxb4 {[%emt 0:01:25]} Nxb4 {[%emt 0:00:04]} 30. Kxb4 {[%emt 0:00:00]} Ng4 {[%emt 0:00:00]} 31. Kb5 {[%emt 0:00:38]} Kd7 {[%emt 0:00:24]} 32. c6+ {[%emt 0:00:02]} Kc7 {[%emt 0:00:03]} 33. Bc3 {[%emt 0:00:01]} Nxf2 {[%emt 0:00:05]} 34. Ba5+ {[%emt 0:00:01]} Kc8 {[%emt 0:00:01]} 35. Kc5 {[%emt 0:00:31]} Ne4+ {[%emt 0:00:21]} 36. Kc4 {[%emt 0:00:09]} Nd6+ {[%emt 0:00:20]} 37. Kc5 {[%emt 0:00:20]} Ne4+ {[%emt 0:00:01]} 38. Kc4 {[%emt 0:00:00]} Nd6+ {[%emt 0:00:01]} 39. Kd3 {[%emt 0:00:00]} h5 {[%emt 0:00:35]} 40. Bb6 {[%emt 0:00:55]} g5 {[%emt 0:00:16]} 41. d5 {[%emt 0:00:48]} exd5 {[%emt 0:01:58]} 42. Kd4 {[%emt 0:00:02]} Nc4 {[%emt 0:00:03]} 43. Bc5 {[%emt 0:00:02]} Nxe3 {[%emt 0:00:42]} 44. Kxe3 {[%emt 0:00:09]} Kc7 {[%emt 0:00:01]} 45. Be7 {[%emt 0:00:09]} g4 {[%emt 0:00:21]} 46. Bg5 {[%emt 0:00:02]} Kxc6 {[%emt 0:00:02]} 47. Kd4 {[%emt 0:00:01]} Kd6 {[%emt 0:00:01]} 48. Bf4+ {[%emt 0:00:07]} Ke6 {[%emt 0:00:01]} 49. Bb8 {[%emt 0:00:01]} h4 {[%emt 0:00:05]} 50. Bf4 {[%emt 0:00:06]} hxg3 {[%emt 0:00:03]} 51. hxg3 {[%emt 0:00:00]} Kf6 {[%emt 0:00:02]} 52. Kxd5 {[%emt 0:00:01]} Kf7 {[%emt 0:00:01]} 53. Ke5 {[%emt 0:00:01]} Kg6 {[%emt 0:00:00]} 54. Ke6 {[%emt 0:00:01]} Kh5 {[%emt 0:00:01]} 55. Bc7 {[%emt 0:00:08]} Kg5 {[%emt 0:00:01]} 56. Bd8+ {[%emt 0:00:10]} Kg6 {[%emt 0:00:02]} 57. Ke5 {[%emt 0:00:02]} f4 {[%emt 0:00:03]} 58. Kxf4 {[%emt 0:00:01]} Kh5 {[%emt 0:00:02]} 59. Bg5 {[%emt 0:00:01] Johnny Johnson resigns (Lag: Av=0.39s, max=2.7s)} 1-0

[Event "OEISM 0818 BLMM"]
[Site "austriablmm"]
[Date "2020.12.12"]
[Round "6"]
[White "DoHoChess"]
[Black "Beckenbauer23"]
[Result "1/2-1/2"]
[WhiteElo "2240"]
[BlackElo "2080"]
[Annotator "NA"]
[PlyCount "59"]
[EventDate "2020.12.12"]
[EventType "blitz"]
[TimeControl "600+3"]

1. Nf3 {[%emt 0:00:00]} c5 {[%emt 0:00:01]} 2. b3 {[%emt 0:00:01]} d6 {[%emt 0:00:01]} 3. Bb2 {[%emt 0:00:05]} e5 {[%emt 0:00:02]} 4. c4 {[%emt 0:00:02]} Nc6 {[%emt 0:00:07]} 5. d3 {[%emt 0:00:05]} g6 {[%emt 0:00:16]} 6. g3 {[%emt 0:00:01]} Bg7 {[%emt 0:00:03]} 7. Bg2 {[%emt 0:00:01]} Nge7 {[%emt 0:00:02]} 8. O-O {[%emt 0:00:08]} O-O {[%emt 0:00:14]} 9. Nc3 {[%emt 0:00:01]} h6 {[%emt 0:00:35]} 10. Nd2 {[%emt 0:00:08]} Be6 {[%emt 0:00:04]} 11. a3 {[%emt 0:00:04]} Qd7 {[%emt 0:00:06]} 12. Nd5 {[%emt 0:00:04]} Bh3 {[%emt 0:00:07]} 13. Bxh3 {[%emt 0:00:44]} Qxh3 {[%emt 0:00:00]} 14. b4 {[%emt 0:00:01]} b6 {[%emt 0:00:07]} 15. Ne4 {[%emt 0:00:34]} Rad8 {[%emt 0:00:22]} 16. Qa4 {[%emt 0:00:11]} f5 {[%emt 0:00:30]} 17. Nd2 {[%emt 0:01:40]} Nxd5 {[%emt 0:01:21]} 18. cxd5 {[%emt 0:00:24]} Ne7 {[%emt 0:00:02]} 19. e4 {[%emt 0:01:42]} f4 {[%emt 0:00:20]} 20. Qd1 {[%emt 0:00:01]} g5 {[%emt 0:00:19]} 21. Qf3 {[%emt 0:00:10]} fxg3 {[%emt 0:00:34]} 22. Qxg3 {[%emt 0:00:02]} Qd7 {[%emt 0:00:05]} 23. Nc4 {[%emt 0:00:34]} Ng6 {[%emt 0:00:07]} 24. Bc1 {[%emt 0:00:07]} Rf7 {[%emt 0:00:31]} 25. Ra2 {[%emt 0:00:16]} Rdf8 {[%emt 0:00:04]} 26. f3 {[%emt 0:00:17]} Nh4 {[%emt 0:00:33]} 27. Raf2 {[%emt 0:00:06]} Qd8 {[%emt 0:01:01]} 28. Kh1 {[%emt 0:00:35]} Qf6 {[%emt 0:00:06]} 29. Ne3 {[%emt 0:01:07]} Qe7 {[%emt 0:00:24]} 30. b5 {[%emt 0:00:21] DoHoChess bietet Remis (Lag: Av=0.28s, max=0.6s)} 1/2-1/2

[Event "OEISM 0818 BLMM"]
[Site "austriablmm"]
[Date "2020.12.12"]
[Round "6"]
[White "EdiRaber"]
[Black "Ppe1968"]
[Result "0-1"]
[WhiteElo "1741"]
[BlackElo "1922"]
[Annotator "NA"]
[PlyCount "114"]
[EventDate "2020.12.12"]
[EventType "blitz"]
[TimeControl "600+3"]

1. e4 {[%emt 0:00:03]} e5 {[%emt 0:00:11]} 2. Nf3 {[%emt 0:00:02]} Nc6 {[%emt 0:00:11]} 3. Bc4 {[%emt 0:00:04]} Bc5 {[%emt 0:00:04]} 4. O-O {[%emt 0:00:03]} d6 {[%emt 0:00:01]} 5. Nc3 {[%emt 0:00:13]} Nf6 {[%emt 0:00:02]} 6. d3 {[%emt 0:00:02]} h6 {[%emt 0:00:04]} 7. Be3 {[%emt 0:00:13]} Bg4 {[%emt 0:00:08]} 8. Bxc5 {[%emt 0:00:03]} dxc5 {[%emt 0:00:02]} 9. Bb5 {[%emt 0:00:05]} Qd6 {[%emt 0:00:33]} 10. Bxc6+ {[%emt 0:00:04]} Qxc6 {[%emt 0:00:02]} 11. h3 {[%emt 0:00:02]} Bxf3 {[%emt 0:00:21]} 12. Qxf3 {[%emt 0:00:03]} O-O {[%emt 0:00:36]} 13. Rad1 {[%emt 0:00:40]} Rad8 {[%emt 0:00:07]} 14. Qf5 {[%emt 0:00:16]} Rfe8 {[%emt 0:00:03]} 15. Rfe1 {[%emt 0:00:07]} g6 {[%emt 0:00:41]} 16. Qf3 {[%emt 0:00:10]} Kg7 {[%emt 0:00:01]} 17. Ne2 {[%emt 0:00:12]} c4 {[%emt 0:01:18]} 18. dxc4 {[%emt 0:00:03]} Qxc4 {[%emt 0:00:19]} 19. Nc3 {[%emt 0:00:03]} Qb4 {[%emt 0:00:21]} 20. b3 {[%emt 0:00:21]} Rd4 {[%emt 0:00:11]} 21. Rxd4 {[%emt 0:00:14]} exd4 {[%emt 0:00:25]} 22. Rd1 {[%emt 0:00:11]} Qxc3 {[%emt 0:00:09]} 23. Rd3 {[%emt 0:00:03]} Qe1+ {[%emt 0:00:03]} 24. Kh2 {[%emt 0:00:02]} Qxe4 {[%emt 0:00:02]} 25. Qg3 {[%emt 0:00:06]} Qe5 {[%emt 0:00:05]} 26. Qxe5 {[%emt 0:00:08]} Rxe5 {[%emt 0:00:00]} 27. Rxd4 {[%emt 0:00:01]} Re2 {[%emt 0:00:04]} 28. Rc4 {[%emt 0:00:01]} c6 {[%emt 0:00:04]} 29. Rb4 {[%emt 0:00:02]} Rxc2 {[%emt 0:00:07]} 30. Rxb7 {[%emt 0:00:02]} Rxa2 {[%emt 0:00:01]} 31. Rc7 {[%emt 0:00:01]} Rb2 {[%emt 0:00:22]} 32. Rxa7 {[%emt 0:00:05]} Rxb3 {[%emt 0:00:01]} 33. Rc7 {[%emt 0:00:01]} Rc3 {[%emt 0:00:01]} 34. f3 {[%emt 0:00:09]} c5 {[%emt 0:00:02]} 35. Kg3 {[%emt 0:00:01]} c4 {[%emt 0:00:03]} 36. Kf2 {[%emt 0:00:01]} Rc2+ {[%emt 0:00:01]} 37. Kf1 {[%emt 0:00:02]} c3 {[%emt 0:00:02]} 38. g4 {[%emt 0:00:02]} Rc1+ {[%emt 0:00:12]} 39. Ke2 {[%emt 0:00:04]} Nd5 {[%emt 0:00:00]} 40. Rc5 {[%emt 0:00:03]} Nf4+ {[%emt 0:00:04]} 41. Ke3 {[%emt 0:00:04]} Nxh3 {[%emt 0:00:03]} 42. Kd4 {[%emt 0:00:05]} Ng1 {[%emt 0:00:06]} 43. f4 {[%emt 0:00:04]} Nf3+ {[%emt 0:00:03]} 44. Kd3 {[%emt 0:00:04]} c2 {[%emt 0:00:12]} 45. Rxc2 {[%emt 0:00:08]} Ne1+ {[%emt 0:00:04]} 46. Kd2 {[%emt 0:00:03]} Rxc2+ {[%emt 0:00:01]} 47. Kxe1 {[%emt 0:00:01]} Kf6 {[%emt 0:00:01]} 48. g5+ {[%emt 0:00:05]} hxg5 {[%emt 0:00:01]} 49. fxg5+ {[%emt 0:00:01]} Ke5 {[%emt 0:00:01]} 50. Kd1 {[%emt 0:00:03]} Rh2 {[%emt 0:00:00]} 51. Ke1 {[%emt 0:00:01]} Ke4 {[%emt 0:00:00]} 52. Kf1 {[%emt 0:00:33]} Ke3 {[%emt 0:00:00]} 53. Kg1 {[%emt 0:00:02]} Ra2 {[%emt 0:00:05]} 54. Kf1 {[%emt 0:00:01]} Rb2 {[%emt 0:00:01]} 55. Kg1 {[%emt 0:00:03]} Kf3 {[%emt 0:00:01]} 56. Kh1 {[%emt 0:00:01]} Kg3 {[%emt 0:00:01]} 57. Kg1 {[%emt 0:00:00]} Rb1# {[%emt 0:00:00] Mate} 0-1